Cogmind - Beta 16 --- EXPLORER MODE // 2025.11.27 @ 14:21:00 Player: K.K.Y. Result: Destroyed by P-70 Sage with Tesla Rifle Performance ------------- Evolutions (5) 2500 Regions Visited (11) 2200 Robots Destroyed (142) 710 Value Destroyed (5883) 5883 Prototype IDs (32) 640 Alien Tech Used (0) 0 Bonus (633) 633 TOTAL SCORE: 12566 Bonus ------- Follower Combat Kills 375 Met Data Miner 300 Friendly Fire -42 Cogmind --------- Core Integrity 0/1000 Matter 295/300 Energy 100/100 System Corruption 10% Temperature Cool (0) Movement Core (1450) Ox28 Location -5/Factory Parts ------- > --- POWER (2) -------- (None) > --- PROPULSION (6) --- (None) > --- UTILITY (7) ------ Huge Storage Unit Machine Analyzer Improved Transmission Jammer Dynamic Insulation System (fused) > --- WEAPON (3) ------- Chainsword > --- INVENTORY (25) --- Micro Fission Core Small Storage Unit Light Humpback Humpback Structural Scanner Particle Charger Improved Remote Datajack Plasma Cutter Peak State ------------ > --- POWER ------------ Light Angular Momentum Engine Light Antimatter Reactor > --- PROPULSION ------- Flexi-carbon Leg Flexi-carbon Leg Armored Leg Armored Leg Multireflex Exoskeleton > --- UTILITY ---------- Advanced Heat Sink Advanced Heat Sink Advanced Heat Sink Huge Storage Unit Phase Shifter Hacking Suite Recalibrator > --- WEAPON ----------- Wave Gun Advanced Plasma Cannon Mass Driver > --- INVENTORY -------- Light Fission Core Micro Fission Core Cooled Aerolev Unit Cooled Aerolev Unit Combat Airjet Combat Airjet Antigrav System Small Storage Unit Light Humpback Humpback Structural Scanner Machine Analyzer Advanced Sensor Array Makeshift System Restoration Module Arc Projector High-powered Shock Rifle Variable Charge Gun Improved EM Pulse Cannon Gauss Rifle Heavy Battle Rifle Magnetic Acceleration Cannon Remote Datajack Plasma Cutter [Rating: 99] Favorites ----------- Power Improved Ion Engine Engine Improved Ion Engine Power Core Micro Fission Core Reactor Light Antimatter Reactor Propulsion Improved Aluminum Leg Leg Improved Aluminum Leg Hover Unit Combat Airjet Flight Unit Flight Unit Utility Advanced Heat Sink Device Advanced Heat Sink Storage Huge Storage Unit Processor Machine Analyzer Hackware Hacking Suite Protection Improved Medium Armor Plating Weapon Heavy Battle Rifle Energy Gun Cooled Pulse Rifle Energy Cannon Cooled Particle Cannon Ballistic Gun Heavy Battle Rifle Ballistic Cannon Battle Cannon Special Weapon Mining Laser Slashing Weapon Chainsword Build | -11 -10 -10 -10 -9 -9 -6 -6 -6 -6 -5 -5 ------- Run | Yrd Mat Min Sub Rec Scr Fac Low Low Dat Pro Fac Slots Evolved 11 | . 1 . . . . 8 . . . . 2 Power 1 | . . . . . . 1 . . . . . Propulsion 4 | . 1 . . . . 3 . . . . . Utility 5 | . . . . . . 3 . . . . 2 Weapon 1 | . . . . . . 1 . . . . . Parts Attached 118 | 7 7 4 7 4 3 22 2 4 . 16 42 Power 23 | 1 1 1 3 2 1 3 . 1 . 5 5 Engine 16 | 1 1 1 3 2 1 3 . 1 . 3 . Core 6 | . . . . . . . . . . 1 5 Reactor 1 | . . . . . . . . . . 1 . Propulsion 33 | 2 4 1 1 2 . 4 . . . 6 13 Treads . | . . . . . . . . . . . . Leg 18 | 2 1 . 1 2 . 4 . . . 5 3 Wheel . | . . . . . . . . . . . . Hover 11 | . . . . . . . . . . 1 10 Flight 4 | . 3 1 . . . . . . . . . Utility 27 | 2 1 . 1 . 2 6 1 . . 1 13 Device 18 | 1 . . . . 1 4 . . . 1 11 Storage 3 | 1 1 . 1 . . . . . . . . Processor 2 | . . . . . . . . . . . 2 Hackware 2 | . . . . . 1 1 . . . . . Protection 2 | . . . . . . 1 1 . . . . Artifact . | . . . . . . . . . . . . Weapon 35 | 2 1 2 2 . . 9 1 3 . 4 11 Energy Gun 11 | 2 . . . . . 3 . 1 . . 5 Energy Cannon 10 | . 1 . . . . 3 . . . 3 3 Ballistic Gun 5 | . . 1 1 . . 1 . . . . 2 Ballistic Cannon 6 | . . . 1 . . 2 1 1 . 1 . Launcher . | . . . . . . . . . . . . Special Weapon 2 | . . 1 . . . . . 1 . . . Impact Weapon . | . . . . . . . . . . . . Slashing Weapon 1 | . . . . . . . . . . . 1 Piercing Weapon . | . . . . . . . . . . . . Special Melee Weapon . | . . . . . . . . . . . . Unidentified Prototypes 9 | . . . . . . 6 . 2 . . 1 Parts Lost 56 | . 2 . 5 . . . 1 2 . 7 39 Power 12 | . . . 2 . . . . 1 . 2 7 Propulsion 14 | . 1 . 2 . . . . 1 . . 10 Utility 13 | . . . . . . . 1 . . 1 11 Weapon 17 | . 1 . 1 . . . . . . 4 11 Highest Loss Streak 7 | . 2 . 1 . . . 1 2 . 4 7 To Critical Strikes . | . . . . . . . . . . . . Average Backups 16 | . 5 6 7 10 20 22 23 22 23 22 19 Power 1 | . . . . . 1 2 2 2 2 2 1 Propulsion 2 | . . . . 1 3 5 6 6 6 5 1 Utility 6 | . 2 4 5 7 11 7 6 6 7 7 7 Weapon 4 | . 2 2 1 1 3 5 7 6 6 6 5 Tool/Special . | . . . . . . . . . . . . Unused Backups 33 | . 5 . 4 . 1 11 . . . 3 9 Power 2 | . 1 . . . . . . . . . 1 Propulsion 9 | . . . 1 . . 3 . . . 3 2 Utility 12 | . 1 . 2 . 1 5 . . . . 3 Weapon 7 | . 3 . 1 . . 3 . . . . . Tool/Special 3 | . . . . . . . . . . . 3 Average Slot Usage (%) 72 | . 83 87 50 66 71 76 82 76 68 82 73 Engine 7 | . 12 12 6 3 9 9 11 11 12 7 2 Core 1 | . . . . . . . . . . . 5 Reactor 1 | . . . . . . . . . . 4 2 Leg 18 | . 9 . 8 26 27 27 27 19 12 25 8 Hover 2 | . . . . . . . . . . . 13 Flight 1 | . 10 31 1 . . . . . . . . Device 11 | . 12 12 9 9 5 7 11 11 12 15 17 Storage 7 | . 12 12 9 9 9 5 5 5 6 6 5 Hackware 3 | . . . . . 3 8 6 5 6 6 4 Energy Gun 2 | . 18 5 . . . . 5 5 . . 3 Energy Cannon 3 | . 6 5 . . . 6 5 5 6 9 3 Ballistic Gun 3 | . . 2 8 9 9 2 . . . . . Ballistic Cannon 4 | . . . . 9 9 4 5 3 . 3 2 Special Weapon 1 | . . 4 6 . . . . . 6 . . Peak Build Rating 99 | 7 9 9 33 38 44 91 89 89 71 78 99 Average Rating 55 | 4 6 7 28 36 41 82 88 75 71 72 73 On Entrance 44 | . 7 7 8 33 38 44 88 89 71 71 78 Avg Prop Armor Cover (%) 3 | . . . . . . . . . . . 3 Naked Turns . | . . . . . . . . . . . . Heaviest Build 132 | 17 17 13 93 95 95 131 128 130 124 132 129 Greatest Support 147 | 20 30 12 50 76 76 147 132 132 56 106 108 Greatest Overweight (x) 39 | . 5 1 2 1 1 1 . 2 2 2 39 Average Overweight (x) . | . 1 . . 1 1 . . . 2 1 1 Largest Inventory Capacity 25 | 10 10 8 25 25 25 25 25 25 25 25 25 Average Capacity 21 | 6 8 8 9 25 25 25 25 25 25 25 25 Most Carried 25 | 4 10 8 10 16 25 25 25 25 25 25 25 Average Carried 18 | . 5 6 7 12 22 24 25 24 25 24 21 Final Capacity 25 | 10 8 8 25 25 25 25 25 25 25 25 25 Final Carried 25 | . 6 8 10 16 25 25 25 25 25 25 10 Class Distribution -------------------- 43% | Hacker-Mutant 20% | Commander-Mutant 17% | Hacker-Tank 7% | Hacker-Gunner Dominant Class ---------------- Hacker-Mutant | -10/Materials Hacker-Mutant | -10/Mines Hacker-Mutant | -10/Subcaves Commander-Mutant | -9/Recycling Commander-Mutant | -9/Scraptown Commander-Tank | -6/Factory Hacker-Tank | -6/Lower Caves Hacker-Tank | -6/Lower Caves Hacker-Tank | -6/Data Miner Hacker-Mutant | -5/Proximity Caves Hacker-Mutant | -5/Factory Resources | -11 -10 -10 -10 -9 -9 -6 -6 -6 -6 -5 -5 ----------- Run | Yrd Mat Min Sub Rec Scr Fac Low Low Dat Pro Fac Matter Collected 2933 | 177 151 62 440 165 52 385 170 100 . 380 851 Remotely . | . . . . . . . . . . . . Salvage Created 6615 | . 640 195 425 178 . 778 263 80 . 1135 2921 Parts 256 | . 27 12 17 7 . 30 4 2 . 44 113 Haulers Intercepted 6 | . 2 . . . . 1 . . . . 3 Recyclers Shooed 6 | . 2 . . . . 3 . . . . 1 Parts Field Recycled . | . . . . . . . . . . . . Retrieved Matter . | . . . . . . . . . . . . Parts Self-Destructed . | . . . . . . . . . . . . Prevented . | . . . . . . . . . . . . Parts Restored . | . . . . . . . . . . . . Kills | -11 -10 -10 -10 -9 -9 -6 -6 -6 -6 -5 -5 ------- Run | Yrd Mat Min Sub Rec Scr Fac Low Low Dat Pro Fac Combat Hostiles Destroyed 109 | . 7 2 12 5 . 13 6 2 . 19 43 Guns 35 | . 5 . 10 3 . 2 . 1 . . 14 Cannons 63 | . 2 1 2 2 . 10 5 1 . 16 24 AOE 2 | . . . . . . . . . . . 2 Classes Destroyed 20 | . 5 1 4 1 . 4 . 1 . 1 3 Worker 5 | . . . . . . . . . . . 5 Builder 4 | . . . . . . 1 . . . . 3 Tunneler 4 | . . 4 . . . . . . . . . Hauler 6 | . 2 . . . . 1 . . . . 3 Recycler 6 | . 4 . . . . . . . . . 2 Mechanic 1 | . . . . . . . . . . . 1 Operator 1 | . . . . . . . . . . . 1 Turret 1 | . . . 1 . . . . . . . . Watcher 5 | . 2 . . . . 1 . . . . 2 Swarmer 14 | . 4 . . 1 . 1 2 . . . 6 Grunt 40 | . 3 2 . 1 . 6 2 . . 8 18 Brawler 1 | . . . . . . 1 . . . . . Duelist 2 | . . . . . . 1 1 . . . . Sentry 10 | . . . 1 1 . 2 1 1 . 1 3 Hunter 9 | . . . . . . 1 . . . 2 6 Programmer 15 | . . . . 2 . 1 . . . 2 10 Behemoth 1 | . . . . . . . . 1 . . . Artisan 1 | . . . 1 . . . . . . . . Subdweller 11 | . . . 11 . . . . . . . . Thug 4 | . . . . . . . . . . 4 . Savage 1 | . . . . . . . . . . 1 . Mutant 1 | . . . . . . . . . . 1 . Best Kill Streak 10 | . 5 2 2 3 . 2 3 1 . 5 10 Combat Bots Only 6 | . 2 2 2 3 . 2 3 1 . 5 6 Max Kills in Single Turn 4 | . 1 1 1 1 . 1 1 1 . 1 4 Gunslinging . | . . . . . . . . . . . . Exploded 2 | . . . . . . . . . . . 2 Melee . | . . . . . . . . . . . . Uniques/NPCs Destroyed . | . . . . . . . . . . . . Combat | -11 -10 -10 -10 -9 -9 -6 -6 -6 -6 -5 -5 -------- Run | Yrd Mat Min Sub Rec Scr Fac Low Low Dat Pro Fac Hostile Shots Fired 926 | . 44 6 70 16 . 96 38 54 . 152 450 Missed 273 | . 18 2 20 4 . 36 13 22 . 42 116 Hits 653 | . 26 4 50 12 . 60 25 32 . 110 334 Melee 5 | . . . . . . 3 1 . . 1 . Projectile 648 | . 26 4 50 12 . 57 24 32 . 109 334 Critical Strikes 32 | . . . 1 2 . 4 . 1 . 6 18 Part Disruptions 3 | . . . . . . . . . . 1 2 Actively Blocked 1 | . . . . . . . . . . . 1 Damage Taken 7932 | . 162 38 743 145 . 708 201 463 . 1319 4153 Core 1561 | . 36 . 111 33 . 180 19 80 . 92 1010 Absorbed by Shields 25 | . . . . 2 . 23 . . . . . Ignored by Resistances 4785 | . 112 23 408 91 . 446 128 270 . 781 2526 Core Remaining (%) 61 | 100 . . . . 28 . . . . 56 . Volleys Fired 405 | . 33 26 72 10 . 35 13 16 . 57 143 Largest 3 | . 2 2 2 2 . 3 3 3 . 3 3 Hottest 323 | . 100 100 133 66 . 219 94 113 . 174 323 Shots Fired 826 | . 65 34 98 20 . 91 35 43 . 134 306 Gun 317 | . 46 12 66 10 . 27 9 12 . . 135 Cannon 468 | . 19 9 8 10 . 64 26 31 . 130 171 Launcher . | . . . . . . . . . . . . Special 41 | . . 13 24 . . . . . . 4 . Kinetic 271 | . . 4 74 20 . 42 13 15 . 15 88 Thermal 416 | . 51 30 24 . . 49 22 28 . 59 153 Explosive . | . . . . . . . . . . . . Electromagnetic 135 | . 14 . . . . . . . . 56 65 Robot Hit Streak 49 | . 24 26 20 24 . 49 24 33 . 37 39 Robot Miss Streak 4 | . 2 1 1 . . 1 1 1 . 1 4 Penetration Max 1 | . . . . . . . . . . . 1 Secondary Targets . | . . . . . . . . . . . . Shots Hit Robots 639 | . 52 19 55 15 . 69 29 37 . 111 252 Core Hits 251 | . 23 5 29 6 . 34 11 7 . 36 100 Critical Kills 3 | . . . . 1 . 1 . . . . 1 Critical Parts Destroyed 1 | . . . . . . . . . . . 1 Critical Strikes 15 | . . . . 1 . 2 3 3 . 2 4 Burn 3 | . . . . . . . 2 . . . 1 Meltdown 2 | . . . . . . 1 . . . . 1 Destroy 2 | . . . . 1 . . . . . . 1 Blast 7 | . . . . . . 1 1 3 . 1 1 Corrupt 1 | . . . . . . . . . . 1 . Melee Attacks 3 | . . . . . . . . . . . 3 Impact . | . . . . . . . . . . . . Slashing 3 | . . . . . . . . . . . 3 Piercing . | . . . . . . . . . . . . Sneak Attacks . | . . . . . . . . . . . . Combat Hostiles . | . . . . . . . . . . . . Follow-up Attacks . | . . . . . . . . . . . . Damage Inflicted 16368 | . 716 262 1075 364 . 1881 759 1070 . 2691 7550 Guns 4989 | . 417 121 825 214 . 388 155 215 . . 2654 Cannons 10522 | . 263 141 130 135 . 1471 604 855 . 2642 4281 Explosions 577 | . 36 . . . . . . . . 49 492 Melee 114 | . . . . . . . . . . . 114 Ramming 46 | . . . . 15 . 22 . . . . 9 Kinetic 5337 | . . 31 955 349 . 818 256 420 . 418 2090 Thermal 8610 | . 582 231 120 . . 1041 503 650 . 1308 4175 Explosive . | . . . . . . . . . . . . Electromagnetic 2261 | . 134 . . . . . . . . 965 1162 Impact . | . . . . . . . . . . . . Slashing 114 | . . . . . . . . . . . 114 Piercing . | . . . . . . . . . . . . Highest Corruption 10 | . 1 1 1 2 . . . . . 4 10 Average Corruption 2 | . 1 1 1 1 . . . . . 3 2 Corruption Purged 6 | . . . . . . . . . . . 6 Corruption Blocked . | . . . . . . . . . . . . Effects 144 | . 8 2 19 28 . . . . . 52 35 Message Errors 35 | . 4 1 5 7 . . . . . 10 8 Matter Fused 29 | . 1 . 4 10 . . . . . 9 5 Heat Flow Errors 25 | . 1 . 4 4 . . . . . 9 7 Energy Discharges 14 | . . 1 1 3 . . . . . 6 3 Parts Rejected 4 | . . . . . . . . . . 2 2 Parts Fused 2 | . . . . . . . . . . . 2 Data Loss (minor) 20 | . 1 . 2 4 . . . . . 9 4 Data Loss (major) 8 | . 1 . 2 . . . . . . 5 . Misfires 2 | . . . . . . . . . . 2 . Alerts 3 | . . . 1 . . . . . . . 2 Weapon Failures 2 | . . . . . . . . . . . 2 Overload Shots 6 | . . . . . . . . . . . 6 Overflow Damage 424 | . 6 16 . . . 50 3 14 . 28 307 Projectiles 290 | . . 16 . . . 50 3 14 . 28 179 Explosions 134 | . 6 . . . . . . . . . 128 Melee . | . . . . . . . . . . . . Knockbacks 23 | . . . 1 . . 8 1 . . 1 12 Impact . | . . . . . . . . . . . . Kinetic 20 | . . . 1 . . 7 1 . . 1 10 Secondary 3 | . . . . . . 1 . . . . 2 Self-Inflicted Damage 48 | . 17 . . . . . . . . . 31 Shots 2 | . 1 . . . . . . . . . 1 Rammed 2 | . . . . . . . . . . . 2 Targets Rammed 5 | . . . . 2 . 1 . . . . 2 Kicked 3 | . . . . 2 . 1 . . . . . Crushed . | . . . . . . . . . . . . Highest Temperature 1247 | . 380 330 182 126 . 585 . 422 . 181 1247 Average Temperature 147 | . 92 145 78 37 . 210 . 223 . 58 167 Received Heat Transfer 2066 | . 72 36 195 33 . 257 90 60 . 405 918 Effects 46 | . . 2 . . . 22 . . . . 22 Shutdowns 14 | . . 1 . . . 7 . . . . 6 Energy Bleed 9 | . . 1 . . . . . . . . 8 Interference 9 | . . . . . . 6 . . . . 3 Short Circuit 4 | . . . . . . 2 . . . . 2 Damage (minor) 3 | . . . . . . 2 . . . . 1 Damage (major) 6 | . . . . . . 4 . . . . 2 Damage (core) 1 | . . . . . . 1 . . . . . Siege Activations . | . . . . . . . . . . . . Martial Activations . | . . . . . . . . . . . . Shielding Activations . | . . . . . . . . . . . . Robots Disrupted 1 | . . . . . . . . . . 1 . Combat Hostiles 1 | . . . . . . . . . . 1 . Robots Corrupted 2 | . . . . . . 1 . . . . 1 Combat Hostiles 1 | . . . . . . . . . . . 1 Parts Fried 15 | . . . . . . 2 . . . 5 8 Impact Corruptions 1 | . . . . . . 1 . . . . . Robots Melted 6 | . . 1 . . . 1 1 . . 1 2 Combat Hostiles 6 | . . 1 . . . 1 1 . . 1 2 Parts Melted 21 | . 1 2 3 . . 1 1 . . . 13 Heat Transferred 12879 | . 1255 496 250 . . 1443 925 962 . 1715 5833 Parts Sabotaged . | . . . . . . . . . . . . Parts Stolen . | . . . . . . . . . . . . Parts Stripped . | . . . . . . . . . . . . Power Chain Reactions 4 | . 1 . . . . . . . . 1 2 Alert | -11 -10 -10 -10 -9 -9 -6 -6 -6 -6 -5 -5 ------- Run | Yrd Mat Min Sub Rec Scr Fac Low Low Dat Pro Fac Maximum Alert Level . | . . . . . . . . . . . . Low Security (%) 100 | 100 100 100 . 100 . 100 . . . . 100 Level 1 . | . . . . . . . . . . . . Level 2 . | . . . . . . . . . . . . Level 3 . | . . . . . . . . . . . . Level 4 . | . . . . . . . . . . . . Level 5 . | . . . . . . . . . . . . High Security . | . . . . . . . . . . . . Max Security . | . . . . . . . . . . . . Peak Influence 114 | . 59 35 . 45 . 90 . . . . 114 Initial . | . . . . . . . . . . . . Average 12 | . 6 6 . 2 . 18 . . . . 19 Influence Increases 3023 | . 249 70 40 166 . 658 140 50 . 290 1360 Destroy 0b10 Robot/C 2060 | . 140 40 40 140 . 420 120 40 . 260 860 Destroy 0b10 Robot/NC 170 | . 40 20 . . . 25 . . . . 85 Destroy Leader 452 | . 38 10 . . . 114 20 10 . 30 230 Allied During Kill 49 | . . . . 11 . 38 . . . . . Successful Hack 50 | . . . . . . 2 . . . . 48 Disable Machine 48 | . . . . . . 12 . . . . 36 Destroy Structure 149 | . 1 . . 15 . 47 . . . . 86 Lose Combat Pursuer 45 | . 30 . . . . . . . . . 15 Influence Decreases 3023 | . 249 70 40 166 . 658 140 50 . 290 1360 Time Decay 2674 | . 239 70 40 166 . 503 140 50 . 280 1186 Lost Part 194 | . 10 . . . . . . . . 10 174 Lost Ally 155 | . . . . . . 155 . . . . . Squads Dispatched 24 | . . . . . . 9 . . . . 15 Investigation 4 | . . . . . . 1 . . . . 3 Extermination 7 | . . . . . . 2 . . . . 5 Reinforcement 7 | . . . . . . 3 . . . . 4 Assault . | . . . . . . . . . . . . Garrison 6 | . . . . . . 3 . . . . 3 Intercept . | . . . . . . . . . . . . Searches Triggered . | . . . . . . . . . . . . Data Miner Redirects 1 | . . . . . . . . . . . 1 Construction Impeded 2 | . . . . . . 1 . . . . 1 Haulers Reinforced 3 | . . . . . . 1 . . . . 2 Active Scanning Responses . | . . . . . . . . . . . . Cargo Convoy Interrupts . | . . . . . . . . . . . . Stealth | -11 -10 -10 -10 -9 -9 -6 -6 -6 -6 -5 -5 --------- Run | Yrd Mat Min Sub Rec Scr Fac Low Low Dat Pro Fac Distress Signals 7 | . 3 . . . . 1 . . . . 3 Communications Jammed . | . . . . . . . . . . . . Distress Signals . | . . . . . . . . . . . . Times Spotted 143 | . 17 2 13 5 . 21 6 3 . 20 56 Peak Tracking Total 5 | . 3 2 2 3 . 4 3 1 . 4 5 Tactical Retreats 3 | . 2 . . . . . . . . . 1 Traps | -11 -10 -10 -10 -9 -9 -6 -6 -6 -6 -5 -5 ------- Run | Yrd Mat Min Sub Rec Scr Fac Low Low Dat Pro Fac Traps Triggered 8 | . 2 . 3 . . . . . . . 3 Indirectly . | . . . . . . . . . . . . Trap Hack Attempts . | . . . . . . . . . . . . Triggered . | . . . . . . . . . . . . Disarmed . | . . . . . . . . . . . . Reprogrammed . | . . . . . . . . . . . . Reused . | . . . . . . . . . . . . Traps Extracted . | . . . . . . . . . . . . Installed . | . . . . . . . . . . . . Triggered . | . . . . . . . . . . . . Machines | -11 -10 -10 -10 -9 -9 -6 -6 -6 -6 -5 -5 ---------- Run | Yrd Mat Min Sub Rec Scr Fac Low Low Dat Pro Fac Machines Disabled 14 | . . . 1 . . 3 . 1 . . 9 Max in Single Turn 3 | . . . 1 . . 2 . 1 . . 3 Garrison Access 3 | . . . . . . 1 . . . . 2 Machines Repaired . | . . . . . . . . . . . . Machines Dismantled . | . . . . . . . . . . . . Machines Sabotaged . | . . . . . . . . . . . . Overloaded Fab Kills . | . . . . . . . . . . . . Hacking | -11 -10 -10 -10 -9 -9 -6 -6 -6 -6 -5 -5 --------- Run | Yrd Mat Min Sub Rec Scr Fac Low Low Dat Pro Fac Machines Accessed 26 | . 2 . 2 4 . 4 1 . 4 . 9 Terminals 5 | . . . . . . 1 . . . . 4 Fabricators 2 | . . . . . . 1 . . . . 1 Repair Stations . | . . . . . . . . . . . . Recycling Units 8 | . 2 . . 4 . 1 . . . . 1 Scanalyzers 1 | . . . . . . . . . . . 1 Garrison Access 3 | . . . . . . 1 . . . . 2 Total Hacks 72 | . 4 . 6 5 . 5 1 . 30 . 21 Successful 63 | . 3 . 6 4 . 4 1 . 30 . 15 Failed 9 | . 1 . . 1 . 1 . . . . 6 Catastrophic 1 | . . . . . . . . . . . 1 Database Lockouts . | . . . . . . . . . . . . Manual 6 | . . . . . . 1 . 1 . . 4 Terminals 11 | . . . . . . 1 . . . . 10 Fabricators 4 | . . . . . . 2 . . . . 2 Repair Stations . | . . . . . . . . . . . . Recycling Units 12 | . 4 . . 5 . 1 . . . . 2 Scanalyzers 5 | . . . . . . . . . . . 5 Garrison Access 3 | . . . . . . 1 . . . . 2 Terminal Hacks 41 | . . . 6 . . . 1 . 30 . 4 Record 16 | . . . 5 . . . . . 11 . . Part Schematic 10 | . . . . . . . . . 8 . 2 Robot Schematic 8 | . . . . . . . . . 8 . . Prototype ID Bank 3 | . . . . . . . . . 3 . . Open Door 1 | . . . . . . . 1 . . . . Zone Layout 2 | . . . . . . . . . . . 2 Proto ID Catalog 1 | . . . 1 . . . . . . . . Fabricator Hacks 3 | . . . . . . 1 . . . . 2 Network Status 1 | . . . . . . 1 . . . . . Load Schematic 1 | . . . . . . . . . . . 1 Build 1 | . . . . . . . . . . . 1 Repair Station Hacks . | . . . . . . . . . . . . Recycling Unit Hacks 9 | . 3 . . 4 . 1 . . . . 1 Retrieve Components 9 | . 3 . . 4 . 1 . . . . 1 Scanalyzer 4 | . . . . . . . . . . . 4 Retrieve Study 4 | . . . . . . . . . . . 4 Garrison Access Hacks 3 | . . . . . . 1 . . . . 2 Seal Access 3 | . . . . . . 1 . . . . 2 Unauthorized Hacks 3 | . . . . . . 1 . . . . 2 Terminals 3 | . . . . . . 1 . . . . 2 Botnet 3 | . . . . . . 1 . . . . 2 Fabricators . | . . . . . . . . . . . . Repair Stations . | . . . . . . . . . . . . Recycling Units . | . . . . . . . . . . . . Scanalyzers . | . . . . . . . . . . . . Garrison Access . | . . . . . . . . . . . . Data Cores Recovered . | . . . . . . . . . . . . Used . | . . . . . . . . . . . . Hacking Detections 8 | . . . . 1 . 1 . . . . 6 Full Trace Events 3 | . . . . . . . . . . . 3 Feedback Events . | . . . . . . . . . . . . Feedback Blocked . | . . . . . . . . . . . . Robot Schematics Acquired 8 | . . . . . . . . . 8 . . Robots Built . | . . . . . . . . . . . . Authchips . | . . . . . . . . . . . . Time . | . . . . . . . . . . . . Total Robot Build Rating . | . . . . . . . . . . . . Part Schematics Acquired 10 | . . . . . . . . . 8 . 2 Parts Built . | . . . . . . . . . . . . Authchips . | . . . . . . . . . . . . Time 56 | . . . . . . . . . . . 56 Total Part Build Rating . | . . . . . . . . . . . . Part Studies Acquired 4 | . . . . . . . . . . . 4 Parts Repaired . | . . . . . . . . . . . . Time . | . . . . . . . . . . . . Parts Recycled . | . . . . . . . . . . . . Recycled Matter . | . . . . . . . . . . . . Retrieved Matter . | . . . . . . . . . . . . Retrieved Components 19 | . 9 . . 8 . 1 . . . . 1 Parts Scanalyzed . | . . . . . . . . . . . . Part Schematics Acquired . | . . . . . . . . . . . . Parts Damaged . | . . . . . . . . . . . . Bothacking | -11 -10 -10 -10 -9 -9 -6 -6 -6 -6 -5 -5 ------------ Run | Yrd Mat Min Sub Rec Scr Fac Low Low Dat Pro Fac Used RIF Installer . | . . . . . . . . . . . . Robots Hacked . | . . . . . . . . . . . . Non-combat . | . . . . . . . . . . . . Combat . | . . . . . . . . . . . . Robot Hacks Applied . | . . . . . . . . . . . . Relay Couplers Released . | . . . . . . . . . . . . Fabnet Peak Effective % . | . . . . . . . . . . . . Robots Rewired 17 | . . . . 17 . . . . . . . Allies Hacked . | . . . . . . . . . . . . Hacks Repelled . | . . . . . . . . . . . . Allies | -11 -10 -10 -10 -9 -9 -6 -6 -6 -6 -5 -5 -------- Run | Yrd Mat Min Sub Rec Scr Fac Low Low Dat Pro Fac Total Allies 17 | . . . . 17 . . . . . . . Largest Group 17 | . . . . 17 17 17 . . . . . Highest-Rated Group 264 | . . . . 264 264 264 . . . . . Highest-Rated Ally 34 | . . . . 34 34 34 . . . . . Total Orders . | . . . . . . . . . . . . Ally Attacks 59 | . . . . 9 . 50 . . . . . Total Damage 1431 | . . . . 224 . 1207 . . . . . Kills 12 | . . . . 2 . 10 . . . . . Allies Corrupted . | . . . . . . . . . . . . Allies Melted . | . . . . . . . . . . . . Intel | -11 -10 -10 -10 -9 -9 -6 -6 -6 -6 -5 -5 ------- Run | Yrd Mat Min Sub Rec Scr Fac Low Low Dat Pro Fac Active Infowar (turns) 7212 | 29 1040 224 2653 1895 915 . . . . . 456 Sensors 7212 | 29 1040 224 2653 1895 915 . . . . . 456 Machine Analysis 2 | . . . . . . . . . . . 2 Jamming 3 | . . . . . . . . . . . 3 Robot Analysis Total . | . . . . . . . . . . . . Derelict Logs Recovered 4 | . . . 1 . . . 1 1 . 1 . Drone Launches . | . . . . . . . . . . . . Drone Recoveries . | . . . . . . . . . . . . Exploration | -11 -10 -10 -10 -9 -9 -6 -6 -6 -6 -5 -5 ------------- Run | Yrd Mat Min Sub Rec Scr Fac Low Low Dat Pro Fac Turns Passed 16597 | 59 1040 224 2653 1895 1488 1299 1221 790 214 2812 2902 Spaces Moved 8716 | 60 502 180 1689 645 777 842 985 445 83 1330 1178 Core 53 | 37 1 . . . . . . . . . 15 Treads . | . . . . . . . . . . . . Legs 7294 | 23 212 . 1539 645 777 842 985 445 83 1330 413 Wheels . | . . . . . . . . . . . . Hover 750 | . . . . . . . . . . . 750 Flight 619 | . 289 180 150 . . . . . . . . Fastest Speed 34 | 50 117 34 34 180 186 114 114 114 260 190 104 Average Speed 150 | 76 181 58 96 185 186 116 114 164 260 194 183 Slowest Speed 2000 | 120 360 117 200 186 186 186 114 260 260 260 2000 Overloaded Moves . | . . . . . . . . . . . . Propulsion Burnouts . | . . . . . . . . . . . . Robots Hopped 1 | . . . . . . 1 . . . . . Potential Cave-ins . | . . . . . . . . . . . . Cave-ins Triggered . | . . . . . . . . . . . . Exploration Rate (%) 63 | 3 82 51 92 94 55 29 97 65 70 99 25 Regions Visited 11 Branch Regions 8 Pre-discovered Areas 5 | . . . 2 . . . . 1 1 1 . Known Exits Taken 11 | 1 1 1 1 1 1 1 1 1 1 1 . Unknown Exits Taken . | . . . . . . . . . . . . Scrap Searched 18 | . . . 4 . 4 . 3 2 . 5 . Spaces Dug 4 | . . 4 . . . . . . . . . Terrain Destroyed 92 | . 1 5 . . . 24 4 . . 16 42 Melee . | . . . . . . . . . . . . Projectile 47 | . . 5 . . . 3 4 . . 12 23 AOE 45 | . 1 . . . . 21 . . . 4 19 Terrain Rammed . | . . . . . . . . . . . . Walls Destroyed . | . . . . . . . . . . . . Machines Disabled . | . . . . . . . . . . . . Actions | -11 -10 -10 -10 -9 -9 -6 -6 -6 -6 -5 -5 --------- Run | Yrd Mat Min Sub Rec Scr Fac Low Low Dat Pro Fac Total 11396 | 73 567 239 2571 1321 822 1098 1054 472 82 1441 1656 Wait 1838 | . . 22 773 564 27 158 54 . . 11 229 Move 8703 | 59 501 179 1688 644 776 839 984 444 82 1329 1178 Hop 1 | . . . . . . 1 . . . . . Pick Up 110 | 7 18 4 11 10 11 14 . 2 . 11 22 Fast Attach 42 | . 2 . 5 . 1 16 1 3 . 9 5 Attach 66 | 7 5 2 3 3 1 3 . 1 . 4 37 Detach 12 | . . 2 . 1 1 1 . 1 . . 6 Swap 29 | . 1 2 7 1 1 5 1 . . 6 5 Drop 85 | . 7 2 12 2 4 25 1 5 . 14 13 Fire 405 | . 33 26 72 10 . 35 13 16 . 57 143 Melee 3 | . . . . . . . . . . . 3 Ram 2 | . . . . . . . . . . . 2 Kick 3 | . . . . 2 . 1 . . . . . Crush . | . . . . . . . . . . . . Escape Stasis 13 | . . . . . . . . . . . 13 Rewire 84 | . . . . 84 . . . . . . . Trap . | . . . . . . . . . . . . Miscellaneous . | . . . . . . . . . . . . Route ------- -11/Scrapyard -10/Materials (discovered 5 exits: *Mat x2 / *Min x2 / *Sub) -10/Mines -10/Subcaves (discovered 3 exits: *Mat x2 / *Rec) -9/Recycling (discovered 2 exits: *Fac / *Scr) -9/Scraptown -6/Factory (discovered 3 exits: *Fac x2 / *Low) -6/Lower Caves -6/Lower Caves -6/Data Miner -5/Proximity Caves -5/Factory (discovered 1 exit: *Fac) History --------- Turn | Location | Event 2 | -11/Scrapyard | Met Revision 17 18 | -11/Scrapyard | Identified exit to Materials 18 | -11/Scrapyard | Discovered exit to Materials (range 16) 60 | -11/Scrapyard | Entered Materials 60 | -10/Materials | Evolved 1 slot: Propulsion x1 60 | -10/Materials | Identified exit to Mines 60 | -10/Materials | Discovered exit to Mines (range 15) 225 | -10/Materials | Identified exit to Materials 225 | -10/Materials | Discovered exit to Materials (range 15) 308 | -10/Materials | Build established: Hacker-Mutant 577 | -10/Materials | Identified exit to Subcaves 577 | -10/Materials | Discovered exit to Subcaves (range 8) 588 | -10/Materials | Discovered exit to Materials (range 16) 829 | -10/Materials | Discovered exit to Mines (range 12) 1100 | -10/Materials | Entered Mines 1124 | -10/Mines | Met a Derelict bent on vengeance 1320 | -10/Mines | Discovered exit to Subcaves (range 3) 1324 | -10/Mines | Entered Subcaves 1325 | -10/Subcaves | Approached by a straggling Scientist 1459 | -10/Subcaves | Visited 4L-MR0's lab 1484 | -10/Subcaves | Found Arachnoskeleton 1486 | -10/Subcaves | Attached Arachnoskeleton, gained temporary slots: Propulsion x3 1875 | -10/Subcaves | Ambushed by angry Subdweller bent on revenge 2236 | -10/Subcaves | Learned location of Zion (-7) 2236 | -10/Subcaves | Met a Zionite searching for "candidates" 2452 | -10/Subcaves | Identified exit to Materials 2452 | -10/Subcaves | Discovered exit to Materials (range 10) 2461 | -10/Subcaves | Visited Clippyterm 2464 | -10/Subcaves | Learned location of Extension (-5) 2464 | -10/Subcaves | Learned Research machine intel 2521 | -10/Subcaves | Discovered exit to Materials (range 11) 2830 | -10/Subcaves | Shifting Twisted Machinery released Mak. System Restoration Module 2883 | -10/Subcaves | Shifting Twisted Machinery released Shrapnel Trap 2922 | -10/Subcaves | Shifting Twisted Machinery released Hvy. Battle Rifle 3067 | -10/Subcaves | Shifting Twisted Machinery released Lgt. Humpback 3451 | -10/Subcaves | Core integrity fell below 50% 3698 | -10/Subcaves | Identified exit to Recycling 3698 | -10/Subcaves | Discovered exit to Recycling (range 10) 3977 | -10/Subcaves | Entered Recycling 4374 | -9/Recycling | Build established: Commander-Mutant 5025 | -9/Recycling | Identified exit to Factory 5025 | -9/Recycling | Discovered exit to Factory (range 15) 5798 | -9/Recycling | Scanned before Scraplab entrance 5824 | -9/Recycling | Entered Scraplab 5839 | -9/Recycling | Identified exit to Scraptown 5839 | -9/Recycling | Discovered exit to Scraptown (range 2) 5872 | -9/Recycling | Entered Scraptown 5872 | -9/Scraptown | Accompanied by 17 allies 5872 | -9/Scraptown | System corruption cleaned by C-Scrubber 6287 | -9/Scraptown | Visited Assassins FH 6307 | -9/Scraptown | Visited Comm Corps 6343 | -9/Scraptown | Visited Red Mages 6449 | -9/Scraptown | Visited SPCMW 6482 | -9/Scraptown | Visited Cave Peace 6504 | -9/Scraptown | Visited Cyclists 6529 | -9/Scraptown | Visited Fellowship of the Rings 7236 | -9/Scraptown | Identified exit to Factory 7236 | -9/Scraptown | Discovered exit to Factory (range 9) 7360 | -9/Scraptown | Entered Factory 7360 | -6/Factory | Accompanied by 17 allies 7360 | -6/Factory | Evolved 8 slots: Power x1, Propulsion x3, Utility x3, Weapon x1 7409 | -6/Factory | Identified exit to Factory 7409 | -6/Factory | Discovered exit to Factory (range 9) 7886 | -6/Factory | Build established: Commander-Tank 7904 | -6/Factory | Lost 7 allies 8099 | -6/Factory | Lost 4 allies 8264 | -6/Factory | Build established: Hacker-Tank 8574 | -6/Factory | Build established: Hacker-Gunner 8579 | -6/Factory | Discovered exit to Factory (range 16) 8642 | -6/Factory | Identified exit to Lower Caves 8642 | -6/Factory | Discovered exit to Lower Caves (range 13) 8659 | -6/Factory | Entered Lower Caves 8842 | -6/Lower Caves | Encountered a Warlord checkpoint 8992 | -6/Lower Caves | Attracted the attention of an 0b10 checkpoint 9453 | -6/Lower Caves | Learned Factory interactive machine intel 9489 | -6/Lower Caves | Build established: Hacker-Tank 9681 | -6/Lower Caves | Identified exit to Lower Caves 9681 | -6/Lower Caves | Discovered exit to Lower Caves (range 16) 9880 | -6/Lower Caves | Entered another Lower Caves area 10210 | -6/Lower Caves | Spotted B-75 Beast 10255 | -6/Lower Caves | Destroyed B-75 Beast 10393 | -6/Lower Caves | Attracted the attention of an 0b10 checkpoint 10525 | -6/Lower Caves | Acquired the password to a Derelict Tinkerer's latest research 10546 | -6/Lower Caves | Found Prototype Special Weapon 10546 | -6/Lower Caves | Identified Molecular Deconstructor 10646 | -6/Lower Caves | Identified exit to Data Miner 10646 | -6/Lower Caves | Discovered exit to Data Miner (range 8) 10670 | -6/Lower Caves | Entered Data Miner 10670 | -6/Data Miner | Identified exit to Proximity Caves 10670 | -6/Data Miner | Discovered exit to Proximity Caves (range 6) 10720 | -6/Data Miner | Met Data Miner 10774 | -6/Data Miner | Acquired the access code to Warlord's prototype stash 10774 | -6/Data Miner | Learned location of Section 7 (-3) 10821 | -6/Data Miner | Received God Mode back door access code from Data Miner 10884 | -6/Data Miner | Entered Proximity Caves 10893 | -5/Proximity Caves | Attracted the attention of an 0b10 checkpoint 11417 | -5/Proximity Caves | Lost 4 parts (2p1u1w) 11701 | -5/Proximity Caves | Discovered exit to Factory (range 11) 12328 | -5/Proximity Caves | Attacked by a faux Warlord 12617 | -5/Proximity Caves | Build established: Hacker-Mutant 13696 | -5/Proximity Caves | Entered Factory 13696 | -5/Factory | Evolved 2 slots: Utility x2 13697 | -5/Factory | Loaded intel: 55 interactive machine locations 14028 | -5/Factory | Incoming investigation squad redirected 14649 | -5/Factory | Identified exit to Factory 14649 | -5/Factory | Discovered exit to Factory (range 11) 14703 | -5/Factory | Build established: Scavenger-Gunner 14978 | -5/Factory | Lost 3 parts (2p1u) 15484 | -5/Factory | Lost 7 parts (1p1n2u3w) 15656 | -5/Factory | Garrison activated, responded to threat 15754 | -5/Factory | Lost 5 parts (1n1u3w) 15894 | -5/Factory | Lost 3 parts (3n) 15992 | -5/Factory | Build established: Hacker-Mutant 16260 | -5/Factory | Core integrity fell below 50% 16288 | -5/Factory | Lost 6 parts (2p2n1u1w) 16531 | -5/Factory | Lost 5 parts (1p2u2w) 16532 | -5/Factory | Core integrity fell below 20% 16582 | -5/Factory | System corruption reached 10% 16598 | -5/Factory | Destroyed by P-70 Sage with Tesla Rifle Last Messages --------------- 16515_ U-05 Engineer lays Concrete. 16515_ K-01 Serf collects debris. 16516_ U-05 Engineer lays Concrete. 16517_ K-01 Serf collects debris. 16517_ U-05 Engineer lays Concrete. 16519_ K-01 Serf collects debris. 16520_ U-05 Engineer lays Concrete. 16522_ N4 UQHH/HBUTELLUO5N2NOA1S98 16528_ K-01 Serf collects debris. 16529_ U-05 Engineer lays Concrete. 16531_ Mic. Fission Core destroyed. 16536_ K-01 Serf collects debris. 16550_ System corrupted: Dynamic Insulation System fused. 16569_ VS&N|UQ31R/|>J>MGPSS1N< 16581_ Hacking Suite destroyed. 16591_ PD8K=JI AKSWE>G3,SPJMX34 7UKPE99Y 16595_ P-70 Sage resets K-01 Serf, system corruption cleaned. Map ----- +----------------------------------------------------+ | ??????????????# #?# !! #?????????????? | | ??????????????# #?# ! ! #?????????????? | | ??????????????# #?# ! # ??????????? | | ??????????????# ### # #???????? | | ??????????????# + """ + #???????? | | ??????????????# ### """"" # #???????? | | ??????????????# #?# """"" # #???????? | | ??????????????# #?# # #???????? | | ???????####+### #?#######/###### #???????? | | ???????# ^^ ######## #???????? | | ???????# ^ # ## #???????? | | ???????# """ # " " + #???????? | | ######## "G" # " " ## ! #???????? | | # "%" # " " ## %" #???????? | | # # " " ## """ #?????? | | # # " " ## ! ##### | | # # " " # | | ! + # " " # | | # # " " + k | | !!! # # " " # | | !!! + # # " "" | | !!! ### #! ! !# % " ?? | | ########?# %#######% "" %% " """?? | | ?????????# % u % """ """?? | | ?????????# " "" ? | | ?????##### @ % % | | ?????# # % % | | ?????# " % %%%ku p % | | ?????# ########/###########+##### " """##### | | ?????## ##?# =| # % #"""T"""#?????? | | ??????# #??# ]!! # #########??????? | | ??????# #??# ]! # #??????????????? | | ??????# #??# ]! # ! #??????????????? | | ??????# #??# / """"""" #??????????????? | | ??????# #??# # """"""" #??????????????? | | ??????# #??# # """"""" #??????????????? | | ??????# #??# # """"""" #??????????????? | | ?????## ##?# % ########?##??????????????? | | ?????# ### #????????????????????????? | | ###### " + #????????????????????????? | | # ### % #????????????????????????? | | ##+##########+######????????????????????????? | | # #??# #?????????????????????????????? | | # """ #??# #?????????????????????????????? | | # """ #??# ##################????????????? | | # """ #??#%## #????????????? | | # #?## ## """ """ """ #????????????? | | #! !! #?# + """ """ """ #????????????? | | # !! #?# # """ """ """ #????????????? | | # #?# # #????????????? | +----------------------------------------------------+ Best States ------------- Heat Dissipation 97 Energy Generation 34 Energy Capacity 465 Matter Stores 300 Matter Capacity 300 Sight Range 16 Robot Scan Range 16 Terrain Scan Density 10 EM Shielding 2 Armor Coverage 600 Resistance: KI 35 Resistance: TH 60 Resistance: EX 35 Resistance: EM 35 Resistance: I 35 Resistance: S 35 Resistance: P 35 Phase Shifting 5 Evasion (%) 63 Offensive Hacking 30 Defensive Hacking 10 Item Schematics ----------------- Combat Drone Bay | -6/Data Miner | Free Lgt. Regenerative Plating | -6/Data Miner | Free Cld. Gravmag System | -6/Data Miner | Free Prc. Matter Filter | -6/Data Miner | Free Hvy. Proton Cannon | -6/Data Miner | Free Field Propulsion Array | -6/Data Miner | Free Adv. Thermal Shield | -6/Data Miner | Free Micro-nuke Launcher | -6/Data Miner | Free Adv. Cryofiber Web | -5/Factory | Hacked Enh. Gauss Cannon | -5/Factory | Hacked Robot Schematics ------------------ E-15 Imp | -6/Data Miner | Free B-48 Gladiator | -6/Data Miner | Free M-22 Extractor | -6/Data Miner | Free A-15 Conveyor | -6/Data Miner | Free R-10 Processor | -6/Data Miner | Free M-36 Artificer | -6/Data Miner | Free L-61 Swordsman | -6/Data Miner | Free B-60 Warrior | -6/Data Miner | Free Fabricated ------------ Nothing Repaired ---------- Nothing Studied --------- Cmb. Airjet | -5/Factory | Hacked Antigrav System | -5/Factory | Hacked Adv. Plasma Cannon | -5/Factory | Hacked Imp. EM Pulse Cannon | -5/Factory | Hacked Alien Tech Used ----------------- None Achievements -------------- None Challenges ------------ None Game ------ Seed ZeronetCoreExtrapolator Manual? 0 Play Time 01:21:43 Cumulative 147.6 hours Start 2025.11.27 @ 11:02:11 End 2025.11.27 @ 14:21:00 Sessions 1 Manual Loads 0 Difficulty Explorer Special Mode None Game No. 180 Rogue 0 Adventurer 0 Explorer 180 Win Type - Total 0 Types 0/0/0/0/0/0/0/0/0/0 Lore% 69 Gallery% 66 Achievement% 52 Wizard Run 0 Options --------- Layout 1 ASCII 0 Keyboard 0 Movement Mouse Keybinds 0 Fullscreen 1 Font 24/Smallcaps Map View 50x35 Zoom Use 0% Tactical HUD 1 Map Filters NONE Filters NONE Steam 1 RUN: e8fabc42-2a8d-4cb7-aa47-3a27ee21de70